bitfinex/quotes_SOLUSD_20241001
["timestamp","ask_amount","ask_price","bid_price","bid_amount"]
[1727822431107,6.9052,144.82,144.79,1.0405405]
[1727822434589,13.75571282,144.86,144.79,1.0405405]
[1727822434813,6.906,144.8,144.79,1.0405405]
[1727822435389,13.75571282,144.86,144.79,1.0405405]
[1727822435390,6.9057,144.81,144.79,1.0405405]
[1727822435594,6.906,144.8,144.79,1.0405405]
[1727822437612,6.9057,144.81,144.79,1.0405405]
[1727822437912,6.906,144.8,144.79,1.0405405]
[1727822439298,26.906,144.8,144.79,1.0405405]
[1727822441210,6.906,144.8,144.79,1.0405405]
[1727822443118,35.3556,144.8,144.74,0.322014]
[1727822443347,6.9084,144.75,144.74,0.322014]
[1727822445022,35.3556,144.8,144.74,0.322014]
[1727822445323,6.907,144.78,144.74,7.230914]
[1727822445524,6.9075,144.77,144.74,0.322014]
[1727822445723,6.6099,144.83,144.75,17.2705]
[1727822445908,6.9066,144.79,144.75,17.2705]
[1727822446099,22.55213632,144.84,144.75,18.65196502]
[1727822446306,22.55213632,144.84,144.8,6.9059]
[1727822446625,15.3556,144.84,144.75,38.02179408]
[1727822446810,6.905,144.83,144.76,1.38123536]
[1727822447002,6.905,144.83,144.78,6.9069]
[1727822448033,6.905,144.83,144.77,6.9074]
[1727822448212,6.9051,144.82,144.77,6.9074]
[1727822450525,6.9047,144.83,144.78,6.907]
[1727822450724,6.9047,144.83,144.75,38.02179408]
[1727822450911,6.9044,144.84,144.79,6.9061]
[1727822452213,6.9054,144.82,144.77,24.1755]
[1727822452413,6.9054,144.82,144.78,6.9068]
[1727822452630,6.9057,144.81,144.77,17.2681]
[1727822452810,6.9056,144.81,144.77,24.1755]
[1727822453010,6.9056,144.81,144.77,17.2681]
[1727822453215,17.2599,144.85,144.76,6.9078]
[1727822453715,6.906,144.81,144.77,6.9073]
[1727822454113,17.2599,144.85,144.77,6.9073]
[1727822454313,6.9052,144.82,144.77,6.9073]
[1727822456010,17.2599,144.85,144.77,6.9073]
[1727822456928,6.9052,144.82,144.78,6.9069]
[1727822457824,17.2599,144.85,144.76,17.2693]
[1727822458141,6.9065,144.79,144.75,12.9451]
[1727822458311,6.9061,144.8,144.75,12.9451]
[1727822458520,6.9061,144.8,144.76,6.9079]
[1727822459018,6.9061,144.8,144.75,12.9454]
[1727822459914,6.9069,144.79,144.75,6.0371]
[1727822460132,6.907,144.78,144.75,6.0371]
[1727822460331,17.2622,144.83,144.75,6.0371]
[1727822460517,6.9066,144.79,144.75,6.0371]
[1727822461042,6.9075,144.77,144.75,6.0371]
[1727822461543,6.907,144.78,144.75,6.0371]
[1727822462117,6.9062,144.8,144.75,14.32693732]
[1727822462425,6.9062,144.8,144.76,6.9079]
[1727822462935,6.9062,144.8,144.75,12.9454]
[1727822463520,27.18005116,144.84,144.75,23.3076]
[1727822463831,6.9047,144.83,144.79,6.9064]
[1727822464042,14.08425116,144.84,144.79,6.9064]
[1727822464217,6.9042,144.84,144.79,6.9064]
[1727822464537,6.9042,144.84,144.8,6.906]
[1727822464721,6.9042,144.84,144.8,8.28706411]
[1727822465431,17.2587,144.86,144.75,23.308]
[1727822465616,20.0,144.85,144.75,23.308]
[1727822465822,6.9057,144.81,144.76,6.9079]
[1727822466022,6.9052,144.82,144.77,6.9073]
[1727822467041,6.9056,144.81,144.77,6.9073]
[1727822467633,6.9061,144.8,144.75,23.308]
[1727822468015,6.9084,144.75,144.74,0.322014]
[1727822469820,35.3556,144.81,144.74,0.322014]
[1727822469821,6.9079,144.77,144.74,0.322014]
[1727822470031,6.907,144.78,144.74,0.322014]
[1727822470344,6.9075,144.77,144.74,0.322014]
[1727822470515,6.907,144.78,144.74,0.322014]
[1727822471535,6.9076,144.77,144.74,0.322014]
[1727822471839,52.62,144.81,144.74,0.322014]
[1727822472147,6.9076,144.77,144.74,0.322014]
[1727822472442,52.62,144.81,144.74,0.322014]
[1727822472648,6.9084,144.75,144.74,0.322014]
[1727822472940,17.2669,144.79,144.74,0.322014]
[1727822473152,6.908,144.76,144.74,0.322014]
[1727822473439,6.9084,144.75,144.74,0.322014]
[1727822474445,6.908,144.76,144.74,0.322014]
[1727822474645,6.9076,144.77,144.74,0.322014]
[1727822475351,42.52748534,144.81,144.74,7.230914]
[1727822475842,6.9074,144.78,144.74,0.322014]
[1727822476044,42.52748534,144.81,144.74,0.322014]
[1727822476340,6.9083,144.76,144.74,0.322014]
[1727822476756,17.266,144.8,144.74,0.322014]
[1727822476936,6.9081,144.76,144.74,0.322014]
[1727822477453,6.9084,144.75,144.74,0.322014]
[1727822478553,26.9084,144.75,144.74,0.322014]
[1727822479246,6.9084,144.75,144.74,0.322014]
[1727822480866,15.3556,144.81,144.74,0.322014]
[1727822481038,6.9084,144.75,144.74,0.322014]
[1727822484127,51.8001,144.79,144.74,0.322014]
[1727822484128,20.0,144.78,144.74,0.322014]
[1727822484332,6.9084,144.75,144.74,0.322014]
[1727822485365,26.9084,144.75,144.74,0.322014]
[1727822486243,50.685284,144.75,144.74,0.322014]
[1727822486558,73.560784,144.75,144.74,0.322014]
[1727822486736,80.73839938,144.75,144.74,0.322014]
[1727822487358,56.96151538,144.75,144.74,0.322014]
[1727822487938,58.16300401,144.75,144.74,0.322014]
[1727822488358,56.96151538,144.75,144.74,0.322014]
[1727822488742,58.16306644,144.75,144.74,0.322014]
[1727822488947,7.17761538,144.75,144.74,0.322014]
[1727822489137,6.9084,144.75,144.74,0.322014]
[1727822489747,6.9083,144.76,144.74,0.322014]
[1727822490071,32.3685,144.79,144.74,0.322014]
[1727822490242,8.36749577,144.8,144.74,0.322014]
[1727822490243,6.9076,144.77,144.74,0.322014]
[1727822490442,7.16615121,144.8,144.74,0.322014]
[1727822490443,6.9073,144.78,144.74,0.322014]
[1727822490664,6.9066,144.79,144.74,0.322014]
[1727822490871,6.9066,144.79,144.75,24.1793]
[1727822491058,6.9066,144.79,144.74,0.322014]
[1727822491059,6.9076,144.77,144.74,0.322014]
[1727822492065,6.9084,144.75,144.74,0.322014]
[1727822495266,24.1781,144.78,144.74,0.322014]
[1727822495578,6.9076,144.77,144.74,0.322014]
[1727822496953,6.9082,144.76,144.74,0.322014]
[1727822498278,6.9084,144.75,144.74,0.322014]
[1727822498754,26.9084,144.75,144.74,0.322014]
[1727822502372,6.9084,144.75,144.74,0.322014]
[1727822502872,7.17190524,144.76,144.74,0.322014]
[1727822503075,6.91,144.78,144.74,0.322014]
[1727822503255,6.9084,144.75,144.74,0.322014]
[1727822503454,6.91,144.78,144.74,0.322014]
[1727822503869,6.9079,144.76,144.74,0.322014]
[1727822508775,6.9084,144.75,144.74,0.322014]
[1727822511387,24.178,144.78,144.74,0.322014]
[1727822511577,25.63805982,144.81,144.74,7.230914]
[1727822511774,17.2641,144.81,144.74,7.230914]
[1727822512081,18.46499749,144.81,144.74,7.230914]
[1727822512387,6.9066,144.79,144.74,7.230914]
[1727822513163,6.906,144.81,144.75,6.6446]
[1727822513361,7.18011551,144.82,144.75,13.5526]
[1727822513662,6.9062,144.8,144.76,6.9078]
[1727822513876,6.9062,144.8,144.75,6.6446]
[1727822514183,6.9062,144.8,144.75,13.5529]
[1727822514386,6.9066,144.79,144.75,13.5529]
[1727822516582,6.9062,144.8,144.75,13.5529]
[1727822516882,6.9062,144.8,144.76,6.9079]
[1727822517060,6.9052,144.82,144.77,6.9071]
[1727822517264,6.9052,144.82,144.78,6.9069]
[1727822517461,6.9052,144.82,144.76,1.38123908]
[1727822517664,6.9052,144.82,144.78,6.907]
[1727822517879,7.16786169,144.85,144.79,6.9064]
[1727822518059,32.3393,144.87,144.79,6.9064]
[1727822518271,6.9044,144.84,144.79,6.9064]
[1727822518683,6.9044,144.84,144.78,1.38113252]
[1727822518990,6.9044,144.84,144.8,6.906]
[1727822520068,6.9127,144.66,144.57,7.53775421]
[1727822520286,20.0,144.7,144.65,30.8213416]
[1727822520590,6.9123,144.67,144.65,0.8213416]
[1727822520967,20.0,144.71,144.65,0.8213416]
[1727822521176,6.9122,144.68,144.65,0.8213416]
[1727822521369,6.9125,144.67,144.65,0.8213416]
[1727822521660,20.0,144.71,144.65,0.8213416]
[1727822521878,6.912,144.68,144.65,0.8213416]
[1727822522495,20.0,144.71,144.65,0.8213416]
[1727822522675,6.9117,144.69,144.65,0.8213416]
[1727822522997,6.9118,144.68,144.65,0.8213416]
[1727822523697,20.0,144.71,144.65,0.8213416]
[1727822523698,6.9113,144.69,144.65,0.8213416]
[1727822524503,6.9123,144.67,144.65,0.8213416]
[1727822525497,20.0,144.71,144.65,0.8213416]
[1727822525708,6.9118,144.68,144.65,0.8213416]
[1727822526985,6.9113,144.69,144.65,0.8213416]
[1727822527979,20.0,144.76,144.65,0.8213416]
[1727822528181,37.2711,144.76,144.65,7.7341416]
[1727822528483,37.2711,144.76,144.65,0.8213416]
[1727822528691,6.9104,144.71,144.66,6.9124]
[1727822529273,21.385,144.79,144.65,0.8213416]
[1727822529490,6.9089,144.74,144.68,6.9113]
[1727822530298,21.385,144.79,144.69,17.2779]
[1727822530299,6.9083,144.76,144.69,17.2779]
[1727822530602,44.54714151,144.82,144.69,17.2779]
[1727822530603,17.2616,144.83,144.74,6.9087]
[1727822530775,6.9071,144.78,144.73,6.9094]
[1727822530982,6.9071,144.78,144.71,17.275]
[1727822531480,6.9074,144.78,144.72,6.9096]
[1727822532276,21.385,144.84,144.71,17.275]
[1727822532277,20.0,144.82,144.71,17.275]
[1727822532496,6.907,144.78,144.73,6.9093]
[1727822533422,6.9075,144.77,144.72,6.9097]
[1727822533906,6.9071,144.78,144.73,6.9093]
[1727822534704,6.9066,144.79,144.74,6.9088]
[1727822534899,6.9061,144.8,144.75,6.9084]
[1727822535203,6.9061,144.8,144.76,6.9079]
[1727822535401,6.906,144.81,144.76,6.9079]
[1727822535606,6.9062,144.8,144.75,24.1787]
[1727822536383,17.2583,144.86,144.75,17.2703]
[1727822536603,6.9056,144.81,144.76,6.9075]
[1727822536981,6.9061,144.8,144.75,24.1786]
[1727822537187,16.43984151,144.88,144.75,17.2703]
[1727822537188,6.9067,144.79,144.75,17.2703]
[1727822538301,17.2613,144.84,144.73,6.9093]
[1727822538302,6.9072,144.78,144.73,6.9093]
[1727822538507,17.2613,144.84,144.74,30.0]
[1727822538794,6.9061,144.8,144.75,6.9083]
[1727822539407,6.9056,144.81,144.76,6.9079]
[1727822540591,6.9061,144.8,144.76,6.9079]
[1727822540786,6.9052,144.82,144.77,6.9074]
[1727822541296,6.9052,144.82,144.76,30.0]
[1727822541493,6.9047,144.83,144.78,12.9993]
[1727822542006,6.9042,144.84,144.78,6.0924]
[1727822542309,20.0,144.87,144.79,6.9065]
[1727822542509,6.9046,144.83,144.79,6.9065]
[1727822543816,6.419,144.82,144.79,6.9065]
[1727822544107,6.419,144.82,144.56,32.6023]
[1727822544108,20.0,144.69,144.56,32.6023]
[1727822544314,43.776884,144.69,144.58,30.0]
[1727822544495,43.776884,144.66,144.56,15.3095]
[1727822544688,6.419,144.72,144.5,15.3095]
[1727822544689,43.776884,144.63,144.5,15.3095]
[1727822545012,6.9166,144.58,144.51,7.7412416]
[1727822545190,17.2845,144.64,144.51,18.1205416]
[1727822545391,43.776884,144.63,144.51,18.1205416]
[1727822545813,6.9171,144.57,144.51,0.8213416]
[1727822546911,6.9171,144.57,144.51,7.7411416]
[1727822547100,6.9171,144.57,144.51,0.8213416]
[1727822547309,6.917,144.57,144.51,0.8213416]
[1727822548219,23.776884,144.64,144.52,6.9192]
[1727822548425,20.0,144.63,144.52,6.9192]
[1727822548595,6.9157,144.6,144.53,6.9188]
[1727822548986,17.2836,144.65,144.51,18.1203416]
[1727822549185,34.5588,144.69,144.56,6.9173]
[1727822549186,6.9142,144.63,144.56,6.9173]
[1727822550109,6.9152,144.61,144.54,24.2135]
[1727822550311,6.9152,144.61,144.51,0.8213416]
[1727822550312,50.0,144.62,144.51,0.8213416]
[1727822550513,20.0,144.61,144.51,0.8213416]
[1727822550720,6.9175,144.56,144.51,0.8213416]
[1727822553592,30.694384,144.56,144.51,0.8213416]
[1727822554015,26.9175,144.56,144.51,0.8213416]
[1727822555595,6.9175,144.56,144.51,0.8213416]
[1727822559901,6.9194,144.52,144.51,0.8213416]
[1727822560905,20.0,144.56,144.51,0.8213416]
[1727822561315,6.9181,144.55,144.51,0.8213416]
[1727822564510,20.0,144.56,144.51,0.8213416]
[1727822564824,6.9181,144.55,144.51,0.8213416]
[1727822565829,6.9194,144.52,144.51,0.8213416]
[1727822566000,50.696284,144.52,144.51,0.8213416]
[1727822566603,26.9194,144.52,144.51,0.8213416]
[1727822567514,6.9194,144.52,144.51,0.8213416]
[1727822569110,30.696284,144.52,144.51,0.8213416]
[1727822569423,20.0,144.54,144.49,0.2191989]
[1727822569726,6.9204,144.5,144.49,0.2191989]
[1727822572928,6.9196,144.52,144.49,0.2191989]
[1727822574134,6.919,144.53,144.49,0.2191989]
[1727822574511,6.9188,144.54,144.49,7.1399989]
[1727822575111,6.9189,144.53,144.49,0.2191989]
[1727822579029,6.9189,144.53,144.49,7.1398989]
[1727822581142,6.9204,144.5,144.49,0.2191989]
[1727822581605,6.92,144.51,144.49,0.2191989]
[1727822581808,6.91,144.59,144.49,0.2191989]
[1727822581809,6.9195,144.52,144.49,0.2191989]
[1727822584825,20.0,144.56,144.49,0.2191989]
[1727822585034,6.9193,144.53,144.49,0.2191989]
[1727822585543,6.9193,144.53,144.49,7.1399989]
[1727822585834,6.9185,144.54,144.5,6.92]
[1727822586220,6.9185,144.54,144.5,30.8457]
[1727822586704,6.9185,144.54,144.5,23.9254]
[1727822587510,6.9185,144.54,144.5,30.8456]
[1727822588305,6.9191,144.53,144.5,23.9254]
[1727822590008,6.9186,144.54,144.5,30.8457]
[1727822590909,6.9204,144.5,144.49,0.2191989]
[1727822592231,34.5883,144.56,144.49,0.2191989]
[1727822592415,6.9204,144.51,144.49,0.2191989]
[1727822592621,6.9204,144.5,144.49,0.2191989]
[1727822595046,6.9188,144.54,144.49,7.1395989]
[1727822595337,6.918,144.55,144.51,24.2188]
[1727822595630,17.2908,144.59,144.49,0.2191989]
[1727822595631,17.2908,144.59,144.49,7.1395989]
[1727822595848,6.9194,144.53,144.49,0.2191989]
[1727822596335,6.9184,144.55,144.49,7.1395989]
[1727822596506,6.9184,144.55,144.5,6.9202]
[1727822596829,6.9171,144.57,144.5,17.3004]
[1727822597009,6.9179,144.56,144.51,6.9198]
[1727822597419,6.9179,144.56,144.5,17.3004]
[1727822597647,6.9179,144.56,144.52,23.5235]
[1727822599040,6.9171,144.57,144.52,23.5235]
[1727822601748,6.9165,144.58,144.53,6.9185]
[1727822602429,6.9172,144.57,144.53,6.9185]
[1727822602945,6.9165,144.59,144.55,6.9178]
[1727822603130,17.2861,144.63,144.53,6.9188]
[1727822603462,17.2861,144.63,144.52,54.06350514]
[1727822603463,17.2884,144.61,144.52,33.9023]
[1727822603629,6.9176,144.56,144.52,33.9023]
[1727822604643,6.9176,144.56,144.52,40.8216]
[1727822604850,6.9171,144.57,144.52,40.8216]
[1727822607145,17.2884,144.61,144.52,40.8216]
[1727822607328,6.917,144.57,144.53,6.9188]
[1727822608632,6.917,144.57,144.52,40.8216]
[1727822609948,6.9166,144.58,144.53,6.9188]
[1727822610532,6.9159,144.6,144.55,6.9178]
[1727822611938,6.9159,144.6,144.56,6.9173]
[1727822612267,6.915,144.62,144.56,20.16120514]
[1727822612438,6.915,144.62,144.56,37.45440514]
[1727822612765,6.915,144.62,144.57,6.9169]
[1727822612935,26.22819915,144.67,144.56,20.16120514]
[1727822613142,6.9143,144.63,144.58,17.2908]
[1727822613447,17.2814,144.67,144.58,37.45200514]
[1727822613655,6.9138,144.64,144.58,37.45200514]
[1727822613853,17.2814,144.67,144.59,6.9159]
[1727822614160,6.9143,144.63,144.58,44.36810514]
[1727822614365,6.9143,144.63,144.58,37.45200514]
[1727822614570,6.9137,144.64,144.6,6.9156]
[1727822615141,6.9137,144.64,144.59,6.916]
[1727822616542,6.9137,144.64,144.58,37.45200514]
[1727822616759,6.9137,144.64,144.59,6.916]
[1727822618764,6.9171,144.57,144.53,13.3708]
[1727822618936,6.9166,144.58,144.53,13.3708]
[1727822619138,17.2861,144.63,144.53,6.452]
[1727822619340,6.9161,144.59,144.54,6.9184]
[1727822619558,20.0,144.64,144.56,6.9174]
[1727822619743,6.9151,144.61,144.55,20.16120514]
[1727822619949,6.9147,144.62,144.57,6.9169]
[1727822620348,20.0,144.65,144.57,6.9169]
[1727822620655,6.9152,144.61,144.57,6.9169]
[1727822621838,6.9147,144.62,144.58,6.9164]
[1727822624161,20.0,144.66,144.53,6.452]
[1727822624355,34.562,144.67,144.54,6.9184]
[1727822624356,6.9166,144.58,144.54,6.9184]
[1727822625069,37.2854,144.64,144.54,6.9184]
[1727822625286,37.2854,144.64,144.53,23.7488]
[1727822625287,37.2854,144.64,144.55,37.45510514]
[1727822625440,6.9152,144.61,144.56,6.9171]
[1727822626070,6.9152,144.61,144.57,6.917]
[1727822627144,6.9152,144.61,144.56,6.9174]
[1727822627846,6.9152,144.61,144.57,6.917]
[1727822628045,6.9148,144.62,144.57,6.917]
[1727822628664,6.9144,144.63,144.57,17.2919]
[1727822628864,6.9144,144.63,144.58,6.9161]
[1727822629063,20.0,144.66,144.57,24.2089]
[1727822629469,20.0,144.66,144.53,6.452]
[1727822629666,6.917,144.57,144.54,17.2955]
[1727822630462,6.9167,144.58,144.54,17.2955]
[1727822630780,6.9161,144.59,144.55,6.918]
[1727822632044,17.2871,144.62,144.54,24.2138]
[1727822632045,6.9165,144.58,144.54,24.2138]
[1727822633743,6.9172,144.57,144.53,13.3705]
[1727822633972,17.2871,144.62,144.53,13.3705]
[1727822633973,6.9161,144.59,144.54,6.9183]
[1727822634350,6.9161,144.59,144.55,6.9179]
[1727822635464,6.916,144.6,144.55,6.9179]
[1727822636774,6.9156,144.6,144.56,6.9174]
[1727822637386,20.0,144.63,144.56,6.9174]
[1727822637592,6.9152,144.61,144.56,6.9174]
[1727822637876,6.9162,144.59,144.55,17.2943]
[1727822639480,6.9166,144.58,144.54,6.9181]
[1727822639882,6.9174,144.57,144.53,6.9188]
[1727822640175,17.2885,144.61,144.53,6.9188]
[1727822640390,6.9167,144.58,144.53,6.9188]
[1727822640683,6.9167,144.58,144.52,33.9022]
[1727822640684,6.9167,144.58,144.54,6.9184]
[1727822641479,26.48,144.63,144.55,6.9179]
[1727822641779,6.9153,144.61,144.54,37.45690514]
[1727822641982,48.59974735,144.67,144.52,51.2015]
[1727822641983,6.9148,144.62,144.58,6.9165]
[1727822642293,15.42,144.68,144.6,20.16120514]
[1727822642469,6.9128,144.66,144.62,24.2003]
[1727822642668,15.42,144.68,144.62,24.2003]
[1727822642885,6.9123,144.67,144.62,24.2003]
[1727822644067,6.9123,144.67,144.63,6.9141]
[1727822644267,6.9119,144.68,144.63,6.9141]
[1727822644572,6.9123,144.67,144.63,6.9141]
[1727822644776,6.9123,144.67,144.62,24.2002]
[1727822644972,6.9128,144.66,144.62,17.2857]
[1727822646667,6.9123,144.67,144.62,24.2002]
[1727822647789,6.9123,144.67,144.63,6.9141]
[1727822648379,6.9118,144.68,144.63,6.9141]
[1727822648674,6.9114,144.69,144.64,6.9133]
[1727822648995,6.9114,144.69,144.65,6.9131]
[1727822649668,6.9104,144.71,144.64,37.44490514]
[1727822649881,17.2729,144.74,144.66,6.9126]
[1727822649882,6.9109,144.7,144.66,6.9126]
[1727822651883,6.9104,144.71,144.66,6.9126]
[1727822652786,6.9108,144.7,144.66,6.9126]
[1727822653376,6.91,144.72,144.67,6.9118]
[1727822653569,6.9097,144.73,144.68,6.9115]
[1727822653890,6.9097,144.73,144.67,15.7018]
[1727822654486,6.909,144.74,144.7,6.9108]
[1727822654793,6.909,144.74,144.69,6.9112]
[1727822654988,6.9099,144.72,144.68,17.2787]
[1727822655295,6.9109,144.7,144.66,6.9124]
[1727822655792,6.9104,144.71,144.66,6.9124]
[1727822656002,20.0,144.77,144.67,17.2799]
[1727822656166,6.9103,144.71,144.67,17.2799]
[1727822656365,6.84996,144.71,144.67,24.1921]
[1727822658402,6.91,144.72,144.68,6.9116]
[1727822658602,6.91,144.72,144.67,24.192]
[1727822659690,6.91,144.72,144.68,6.9115]
[1727822660203,20.0,144.75,144.67,17.2799]
[1727822660501,20.0,144.73,144.65,6.913]
[1727822660699,6.9104,144.71,144.66,6.9124]
[1727822661887,6.91,144.72,144.67,6.9121]
[1727822662100,6.91,144.72,144.68,6.9117]
[1727822662790,6.9095,144.73,144.69,1.38208812]
[1727822664002,6.9095,144.73,144.68,6.9117]
[1727822664706,23.776884,144.65,144.51,50.3003]
[1727822665002,20.0,144.64,144.53,20.16120514]
[1727822665214,6.9166,144.58,144.52,6.9194]
[1727822665584,6.9156,144.6,144.55,6.918]
[1727822666382,6.9152,144.61,144.55,6.918]
[1727822668702,20.0,144.65,144.56,1.38314185]
[1727822668910,6.9147,144.62,144.57,6.917]
[1727822669096,6.9147,144.62,144.58,1.38310357]
[1727822669497,6.9142,144.63,144.58,8.29960357]
[1727822669704,17.2784,144.69,144.58,1.38310357]
[1727822670004,17.2784,144.69,144.59,36.51060514]
[1727822670785,17.2784,144.69,144.59,53.79980514]
[1727822670986,6.9137,144.64,144.59,60.71580514]
[1727822671607,6.9137,144.64,144.6,6.9156]
[1727822672492,17.2784,144.69,144.61,17.287]
[1727822672493,26.912,144.68,144.61,17.287]
[1727822672711,6.9123,144.67,144.62,1.38265752]
[1727822673010,6.9127,144.66,144.61,24.2021]
[1727822673401,23.776884,144.65,144.55,11.02765548]
[1727822673594,6.918,144.55,144.51,16.3494]
[1727822673794,6.9186,144.54,144.51,16.3494]
[1727822674196,6.9177,144.56,144.51,23.2692]
[1727822674609,6.918,144.55,144.51,16.3494]
[1727822675208,6.9179,144.56,144.51,23.2691]
[1727822675912,6.9181,144.55,144.51,16.3494]
[1727822676209,6.9186,144.54,144.51,16.3494]
[1727822677219,6.9204,144.5,144.49,0.2191989]
[1727822677395,30.697284,144.5,144.49,0.2191989]
[1727822677706,50.697284,144.5,144.49,0.2191989]
[1727822679206,6.9204,144.5,144.49,0.2191989]
[1727822679591,6.9199,144.51,144.49,0.2191989]
[1727822683800,6.9204,144.5,144.49,0.2191989]
[1727822686017,6.9185,144.54,144.49,7.1395989]
[1727822686514,17.2918,144.58,144.49,0.2191989]
[1727822686890,6.9199,144.51,144.49,0.2191989]
[1727822687422,6.9204,144.5,144.49,0.2191989]
[1727822687612,50.697284,144.5,144.49,0.2191989]
[1727822690519,26.9223,144.46,144.45,0.322014]
[1727822691043,6.9252,144.4,144.36,0.8213416]
[1727822691218,20.0,144.46,144.36,0.8213416]
[1727822691219,6.9266,144.37,144.36,0.8213416]
[1727822691722,17.3118,144.41,144.36,0.8213416]
[1727822691723,43.776884,144.4,144.36,0.8213416]
[1727822691894,6.9266,144.37,144.36,0.8213416]
[1727822692414,43.776884,144.36,144.25,17.33]
[1727822692717,23.776884,144.37,144.23,6.9333]
[1727822692718,6.9305,144.29,144.23,6.9333]
[1727822693111,43.776884,144.34,144.21,17.3346]
[1727822693297,6.9307,144.29,144.23,6.9331]
[1727822693503,6.9329,144.24,144.2,0.2191989]
[1727822694008,43.776884,144.29,144.2,0.2191989]
[1727822694327,6.9325,144.25,144.2,0.2191989]
[1727822694500,50.711184,144.21,144.2,0.2191989]
[1727822694915,43.776884,144.25,144.2,0.2191989]
[1727822695108,6.9339,144.22,144.2,0.2191989]
[1727822695503,6.9362,144.17,144.16,0.322014]
[1727822695820,101.988,144.27,144.16,0.322014]
[1727822696005,51.988,144.27,144.16,0.322014]
[1727822696320,6.9348,144.2,144.16,0.322014]
[1727822696618,20.0,144.26,144.16,0.322014]
[1727822696619,6.9333,144.24,144.17,6.9362]
[1727822696810,6.4284,144.3,144.17,17.3398]
[1727822697317,6.9311,144.28,144.21,6.9342]
[1727822697619,6.9305,144.29,144.23,6.933]
[1727822698417,23.7465,144.36,144.25,6.9322]
[1727822698721,6.9295,144.31,144.25,6.9322]
[1727822699323,6.9288,144.33,144.23,17.3329]
[1727822699526,51.9417,144.4,144.26,17.3292]
[1727822699818,51.9417,144.4,144.23,41.13]
[1727822699819,56.4284,144.44,144.25,32.27185781]
[1727822700032,6.9261,144.38,144.32,17.3221]
[1727822700207,6.9256,144.4,144.32,17.3221]
[1727822700522,6.9245,144.42,144.37,6.9266]
[1727822700711,6.9248,144.41,144.35,24.2459]
[1727822700907,17.3072,144.45,144.31,17.3229]
[1727822701224,6.9262,144.38,144.32,6.9289]
[1727822701525,6.9255,144.4,144.34,6.9279]
[1727822701715,6.9247,144.41,144.35,6.9275]
[1727822701923,6.9242,144.43,144.36,6.9271]
[1727822702224,6.9242,144.42,144.37,6.9266]
[1727822702401,6.9267,144.37,144.32,6.929]
[1727822702600,50.0,144.44,144.3,17.324]
[1727822702601,6.9271,144.36,144.3,17.324]
[1727822702828,6.9284,144.34,144.26,17.3292]
[1727822703007,6.9276,144.35,144.29,6.9303]
[1727822703516,6.9283,144.34,144.28,6.9309]
[1727822703820,20.0,144.38,144.26,17.3292]
[1727822703821,6.9276,144.36,144.26,17.3292]
[1727822704130,6.9276,144.36,144.3,6.9299]
[1727822704505,20.0,144.38,144.31,6.9294]
[1727822704728,6.9267,144.37,144.31,6.9294]
[1727822705234,6.9266,144.37,144.31,6.9291]
[1727822705919,17.3105,144.43,144.32,6.9285]
[1727822706130,20.0,144.42,144.32,6.9285]
[1727822706422,6.9267,144.37,144.29,17.326]
[1727822706723,23.776884,144.41,144.32,6.9289]
[1727822706724,6.9262,144.38,144.32,6.9289]
[1727822707036,6.9262,144.38,144.33,6.9284]
[1727822708227,6.9262,144.38,144.32,24.2514]
[1727822709604,6.9262,144.38,144.28,24.2574]
[1727822709605,6.928,144.35,144.28,24.2574]
[1727822709801,6.928,144.35,144.29,6.9303]